bitfinex-derivatives/quotes_ETHF0:USTF0_20250927
["timestamp","ask_amount","ask_price","bid_price","bid_amount"]
[1758958895911,0.63854742,4011.0,4010.9,1.44601]
[1758958896909,0.63854742,4011.0,4010.9,1.19601]
[1758958897110,0.63854742,4011.0,4010.9,1.44601]
[1758958904516,0.63854742,4011.0,4010.9,1.64466412]
[1758958905211,0.00291929,4011.7,4011.6,0.44843]
[1758958905509,0.00291929,4011.7,4011.6,1.44903]
[1758958905510,0.10284177,4011.7,4011.6,1.44903]
[1758958905718,0.31404177,4011.7,4011.6,1.44903]
[1758958909422,0.53654177,4011.7,4011.6,1.44903]
[1758958915314,0.43661929,4011.7,4011.6,1.44903]
[1758958917225,1.07288612,4011.7,4011.6,1.44903]
[1758958917426,0.85038612,4011.7,4011.6,1.44903]
[1758958920923,1.29880612,4011.7,4011.6,1.0006]
[1758958921617,1.67660612,4011.7,4011.6,0.3158]
[1758958928727,2.23702802,4012.9,4011.6,0.3158]
[1758958928728,1.78476394,4012.7,4012.6,0.44832]
[1758958929031,3.2078,4013.4,4013.3,0.44824]
[1758958929226,0.5263,4013.7,4013.6,1.21301]
[1758958929428,0.3199,4013.7,4013.6,1.21301]
[1758958929826,0.52887398,4013.7,4013.6,1.4659715]
[1758958930328,0.52887398,4013.7,4013.6,0.7667615]
[1758958930535,0.74607398,4013.7,4013.6,0.2192615]
[1758958930831,0.74607398,4013.7,4013.6,0.0019615]
[1758958938634,1.87600248,4013.7,4013.6,0.0019615]
[1758958942241,0.7744,4012.8,4012.7,1.22111]
[1758958942443,0.7744,4012.8,4012.7,1.30411]
[1758958942741,0.7744,4012.8,4012.7,1.47211]
[1758958943135,0.7744,4012.8,4012.7,1.47469591]
[1758958945038,0.7744,4012.8,4012.7,1.22369591]
[1758958945340,0.7744,4012.8,4012.7,1.47469591]
[1758958946344,0.559,4012.8,4012.7,1.47469591]
[1758958948547,0.7744,4012.8,4012.7,1.47469591]
[1758958949840,0.7744,4012.8,4012.7,1.22369591]
[1758958950147,0.7744,4012.8,4012.7,0.00258591]
[1758958950148,1.9043285,4012.8,4012.7,0.00258591]
[1758958950449,1.9043285,4012.8,4012.7,0.25358591]
[1758958952747,1.9043285,4012.8,4012.7,0.48058591]
[1758958955154,1.9043285,4012.8,4012.7,0.81898591]
[1758958955444,1.9043285,4012.8,4012.7,1.02638591]
[1758958955648,0.1282,4013.0,4012.7,0.68798591]
[1758958955840,0.2207,4013.0,4012.9,1.22109]
[1758958956047,0.2207,4013.0,4012.9,1.47209]
[1758958956847,0.78655,4013.2,4012.9,1.47209]
[1758958957062,1.00725,4013.2,4013.1,0.7728]
[1758958957246,1.53398192,4013.2,4013.1,1.0238]
[1758958957849,1.74938192,4013.2,4013.1,1.0238]
[1758958960456,1.22265,4013.2,4013.1,1.0238]
[1758958961055,0.7744,4013.2,4013.1,1.0238]
[1758958961558,1.30206007,4013.2,4013.1,1.0238]
[1758958962356,1.08666007,4013.2,4013.1,1.0238]
[1758958962649,1.30206007,4013.2,4013.1,0.7728]
[1758958962854,1.30206007,4013.2,4013.1,1.0238]
[1758958965360,1.08666007,4013.2,4013.1,1.0238]
[1758958965661,1.08666007,4013.2,4013.1,0.7728]
[1758958965853,1.08666007,4013.2,4013.1,1.47206]
[1758958966556,1.08666007,4013.2,4013.1,1.22106]
[1758958966761,1.08666007,4013.2,4013.1,1.47206]
[1758958969161,1.08671261,4013.2,4013.1,1.47206]
[1758958973564,0.52771261,4013.2,4013.1,1.47206]
[1758958975064,0.86781261,4013.2,4013.1,1.47206]
[1758958975263,1.08661261,4013.2,4013.1,1.47206]
[1758958978365,1.53486261,4013.2,4013.1,1.47206]
[1758958978967,1.53486261,4013.2,4013.1,1.47106]
[1758958980868,1.74266261,4013.2,4013.1,1.22106]
[1758958981069,1.74266261,4013.2,4013.1,1.47106]
[1758958981465,1.74266261,4013.2,4013.1,1.0228]
[1758958981771,1.74266261,4013.2,4013.1,0.6844]
[1758958982273,1.74266261,4013.2,4013.1,1.46246]
[1758958982970,1.74266261,4013.2,4013.1,1.0142]
[1758958983374,1.74266261,4013.2,4013.1,0.7642]
[1758958983571,1.74266261,4013.2,4013.1,1.0142]
[1758958985467,1.74266261,4013.2,4013.1,0.7642]
[1758958985673,1.74266261,4013.2,4013.1,1.0142]
[1758958987873,2.87259111,4013.2,4013.1,1.0142]
[1758958990873,2.87259111,4013.2,4013.1,0.7642]
[1758958991074,2.87259111,4013.2,4013.1,1.0142]
[1758958991970,0.58198,4013.0,4012.9,3.4227]
[1758958992273,1.1988,4012.8,4012.7,0.00258591]
[1758958992475,1.72651261,4012.8,4012.7,0.46748591]
[1758958992667,1.72651261,4012.8,4012.7,0.80488591]
[1758958993474,1.72651261,4012.8,4012.7,0.00258591]
[1758958993679,1.72651261,4012.8,4012.7,0.25258591]
[1758958994283,1.72651261,4012.8,4012.7,0.00258591]
[1758958994469,1.72651261,4012.8,4012.7,0.25258591]
[1758958994869,2.85644111,4012.8,4012.7,0.25258591]
[1758958996778,2.85644111,4012.8,4012.7,0.46998591]
[1758958999272,1.27821261,4012.8,4012.7,1.02018591]
[1758959000075,1.06351261,4012.8,4012.7,1.02018591]
[1758959000779,1.26911261,4012.8,4012.7,1.02018591]
[1758959005282,1.71741261,4012.8,4012.7,1.46849591]
[1758959007385,1.71741261,4012.8,4012.7,1.21849591]
[1758959007586,1.71741261,4012.8,4012.7,1.46849591]
[1758959008187,1.71741261,4012.8,4012.7,0.70089591]
[1758959010087,1.71741261,4012.8,4012.7,0.91829591]
[1758959010379,1.71741261,4012.8,4012.7,1.00569591]
[1758959010586,1.71741261,4012.8,4012.7,0.91829591]
[1758959011284,1.71741261,4012.8,4012.7,0.46998591]
[1758959011480,1.71741261,4012.8,4012.7,0.25258591]
[1758959011681,1.71741261,4012.8,4012.7,0.70089591]
[1758959011882,1.71741261,4012.8,4012.7,0.25258591]
[1758959012587,1.71741261,4012.8,4012.7,0.00258591]
[1758959012790,1.71741261,4012.8,4012.7,0.25258591]
[1758959013487,3.12579154,4012.8,4012.7,0.25258591]
[1758959015291,3.12579154,4012.8,4012.7,0.00258591]
[1758959015491,3.12579154,4012.8,4012.7,0.25258591]
[1758959021499,3.12654812,4012.8,4012.7,0.25258591]
[1758959022086,0.7431,4012.1,4012.0,1.00318]
[1758959022292,1.27156919,4012.1,4012.0,1.25318]
[1758959022801,1.27156919,4012.1,4012.0,1.45928]
[1758959023101,1.27156919,4012.1,4012.0,1.46183533]
[1758959024200,0.7431,4012.1,4012.0,1.46183533]
[1758959025992,0.7431,4012.1,4012.0,1.12443533]
[1758959026396,0.3236,4012.1,4012.0,1.45413533]
[1758959026795,1.21334,4012.4,4012.3,1.20435]
[1758959026997,1.74139784,4012.4,4012.3,1.45435]
[1758959035122,1.74139784,4012.4,4012.3,1.20435]
[1758959035316,1.74139784,4012.4,4012.3,1.45435]
[1758959035516,0.88195,4012.3,4012.2,3.2078]
[1758959035819,1.74140784,4012.3,4012.2,3.678]
[1758959036014,1.74140784,4012.3,4012.2,3.4578]
[1758959036214,1.74140784,4012.3,4012.2,4.12637]
[1758959036513,8.14978677,4012.3,4012.2,3.2078]
[1758959036817,3.14978677,4012.3,4012.2,3.2078]
[1758959038717,3.14978677,4012.3,4012.2,3.4578]
[1758959041516,3.14978677,4012.3,4012.2,3.2078]
[1758959041825,1.21338,4012.1,4012.0,0.00255533]
[1758959042025,1.74143784,4012.1,4012.0,0.25255533]
[1758959042427,1.74143784,4012.1,4012.0,0.00255533]
[1758959042821,1.8318916,4012.1,4012.0,0.00255533]
[1758959044322,1.74143784,4012.1,4012.0,0.00255533]
[1758959046135,1.83183834,4012.1,4012.0,0.00255533]
[1758959046527,6.83183834,4012.1,4012.0,0.00255533]
[1758959048939,7.08183834,4012.1,4012.0,0.00255533]
[1758959050637,2.08183834,4012.1,4012.0,0.00255533]
[1758959053932,1.19638,4011.2,4011.1,3.7575]
[1758959054240,1.2867805,4011.2,4011.1,3.9782]
[1758959055040,1.2867805,4011.2,4011.1,3.98125069]
[1758959055236,5.02148093,4011.2,4011.1,0.00305069]
[1758959060636,6.15291481,4011.2,4011.1,0.00305069]
[1758959063041,6.15291481,4011.2,4011.1,0.55275069]
[1758959063339,5.02148093,4011.2,4011.1,0.77345069]
[1758959066243,4.57300093,4011.2,4011.1,0.77345069]
[1758959066843,4.03460093,4011.2,4011.1,0.77345069]
[1758959067744,4.35660093,4011.2,4011.1,0.77345069]
[1758959067942,4.35660093,4011.2,4011.1,1.02345069]
[1758959069437,4.35630821,4011.2,4011.1,1.02345069]
[1758959071145,4.35631108,4011.2,4011.1,1.02345069]
[1758959071445,4.35632672,4011.2,4011.1,1.02345069]
[1758959074252,4.57341587,4011.2,4011.1,1.47194069]
[1758959075752,4.57345929,4011.2,4011.1,1.47194069]
[1758959078653,5.02193929,4011.2,4011.1,1.14864069]
[1758959078849,5.02193929,4011.2,4011.1,0.89864069]
[1758959079053,5.02193929,4011.2,4011.1,0.70154069]
[1758959079259,5.02193929,4011.2,4011.1,0.25305069]
[1758959080348,6.15337317,4011.2,4011.1,0.25305069]
[1758959080758,6.15337317,4011.2,4011.1,0.00305069]
[1758959081054,6.15337317,4011.2,4011.1,0.25305069]
[1758959082160,6.15386537,4011.2,4011.1,0.25305069]
[1758959086156,6.15386537,4011.2,4011.1,0.76875069]
[1758959086363,4.57395149,4011.2,4011.1,1.43324069]
[1758959086560,1.36615149,4011.2,4011.1,1.43324069]
[1758959088365,1.14975149,4011.2,4011.1,1.43324069]
[1758959088562,0.94025149,4011.2,4011.1,1.43324069]
[1758959088768,0.61825149,4011.2,4011.1,4.64104069]
[1758959088966,0.09016971,4011.2,4011.1,4.64104069]
[1758959089473,0.40136971,4011.2,4011.1,4.64104069]
[1758959089672,0.61026971,4011.2,4011.1,4.64104069]
[1758959092474,2.39878359,4011.2,4011.1,0.00305069]
[1758959092674,1.79559804,4011.2,4011.1,0.00305069]
[1758959092876,2.92703192,4011.2,4011.1,0.00305069]
[1758959094474,2.30861388,4011.2,4011.1,0.00305069]
[1758959095575,2.92804817,4011.2,4011.1,0.00305069]
[1758959095869,2.92804817,4011.2,4009.2,2.24084061]
[1758959095870,1.12123,4011.1,4009.2,2.24084061]
[1758959096073,0.5201,4009.8,4009.7,1.18034]
[1758959096268,0.5201,4009.8,4009.7,1.43234]
[1758959096968,0.52248362,4009.8,4009.7,1.435471]
[1758959097774,0.73108362,4009.8,4009.7,1.435471]
[1758959100270,0.73108362,4009.8,4009.7,1.128271]
[1758959100471,0.73108362,4009.8,4009.7,1.435471]
[1758959103484,0.73108362,4009.8,4009.7,1.183471]
[1758959103685,0.00238362,4009.8,4009.7,1.435471]
[1758959104284,0.00238362,4009.8,4009.7,1.183471]
[1758959104483,0.00238362,4009.8,4009.7,1.435471]
[1758959110184,0.33938362,4009.8,4009.7,1.435471]
[1758959110389,0.55568362,4009.8,4009.7,1.435471]
[1758959111688,0.55568362,4009.8,4009.7,4.643271]
[1758959112286,0.76088362,4009.8,4009.7,4.391271]
[1758959112480,0.76088362,4009.8,4009.7,4.084071]
[1758959112481,1.8923175,4009.8,4009.7,4.084071]
[1758959112883,1.8923175,4009.8,4009.7,4.336071]
[1758959113585,1.8923175,4009.8,4009.7,4.655171]
[1758959116892,1.8923175,4009.8,4009.7,4.403171]
[1758959117081,1.8923175,4009.8,4009.7,4.655171]
[1758959122287,1.98296951,4009.8,4009.7,4.119071]
[1758959122590,0.85153563,4009.8,4009.7,4.438171]
[1758959122990,0.85153563,4009.8,4009.7,4.653971]
[1758959125098,0.09303563,4009.8,4009.7,4.653971]
[1758959126800,0.65163563,4009.8,4009.7,4.653971]
[1758959127302,0.87802321,4009.8,4009.7,4.653971]
[1758959127500,3.26650745,4009.8,4009.7,3.954331]
[1758959127702,3.26650745,4009.8,4009.7,4.205331]
[1758959128095,3.26650745,4009.8,4009.7,3.670431]
[1758959128300,3.26650745,4009.8,4009.7,3.461931]
[1758959130597,3.26650745,4009.8,4009.7,3.210931]
[1758959130809,3.26650745,4009.8,4009.7,3.461931]
[1758959131003,3.26650745,4009.8,4009.7,3.210931]
[1758959131306,3.26650745,4009.8,4009.7,3.461931]
[1758959133205,3.26650745,4009.8,4009.7,3.210931]
[1758959133406,3.26650745,4009.8,4009.7,3.461931]
[1758959134997,3.26650745,4009.8,4009.7,0.254131]
[1758959135707,3.26633333,4009.8,4009.7,0.254131]
[1758959136414,3.26633333,4009.8,4009.7,0.003131]
[1758959140302,3.26633333,4009.8,4009.7,0.548231]
[1758959140707,3.26633333,4009.8,4009.7,0.764031]
[1758959141510,3.26633333,4009.8,4009.7,0.229131]
[1758959142005,3.26633333,4009.8,4009.7,0.003131]
[1758959150115,0.86406,4008.7,4008.6,0.7387]
[1758959150309,2.67386251,4008.7,4008.6,0.7387]
[1758959150622,0.81458028,4008.7,4008.6,0.7387]
[1758959151008,0.60498028,4008.7,4008.6,0.74156987]
[1758959151819,0.09008028,4008.7,4008.6,0.74156987]
[1758959152314,0.39928028,4008.7,4008.6,0.99256987]
[1758959152519,0.09008028,4008.7,4008.6,0.99256987]
[1758959153919,0.60498028,4008.7,4008.6,0.52046987]
[1758959154227,1.26334028,4008.7,4008.6,0.99256987]
[1758959155018,1.26334028,4008.7,4008.6,0.74156987]
[1758959155323,1.26334028,4008.7,4008.6,0.99256987]
[1758959156323,1.78840122,4008.7,4008.6,0.99256987]
[1758959156522,1.26334028,4008.7,4008.6,0.99256987]
[1758959156920,1.26334028,4008.7,4008.6,0.74156987]
[1758959157225,1.78842041,4008.7,4008.6,0.74156987]
[1758959157519,1.78842041,4008.7,4008.6,0.43136987]
[1758959157720,1.78842041,4008.7,4008.6,0.74156987]
[1758959161325,1.78842041,4008.7,4008.6,0.43136987]
[1758959161728,1.33966041,4008.7,4008.6,0.74156987]
[1758959161928,0.09008028,4008.7,4008.6,0.74156987]
[1758959163429,0.81458028,4008.7,4008.6,0.99256987]
[1758959163628,0.81458028,4008.7,4008.6,0.74156987]
[1758959163831,0.81458028,4008.7,4008.6,0.99256987]
[1758959164329,0.81458028,4008.7,4008.6,0.74156987]
[1758959164527,1.33976236,4008.7,4008.6,0.46126987]
[1758959166029,1.33976236,4008.7,4008.6,0.21026987]
[1758959166230,1.33976236,4008.7,4008.6,0.25386987]
[1758959167032,1.33976236,4008.7,4008.6,0.46126987]
[1758959167233,1.33976236,4008.7,4008.6,0.25386987]
[1758959168935,1.33976236,4008.7,4008.6,0.00286987]
[1758959169132,1.33976236,4008.7,4008.6,0.21696987]
[1758959170833,1.33976236,4008.7,4008.6,0.00286987]
[1758959172233,1.33976236,4008.7,4008.6,0.21696987]
[1758959172435,1.33976236,4008.7,4008.6,0.55276987]
[1758959172726,1.33976236,4008.7,4008.6,0.77896987]
[1758959220593,0.61536545,4008.7,4008.6,0.77896987]
[1758959220880,13.56197268,4008.7,4008.6,0.00286987]
[1758959222070,13.30897268,4008.7,4008.6,0.00286987]
[1758959223472,13.56197268,4008.7,4008.6,0.00286987]
[1758959232779,14.06813889,4008.7,4008.6,0.00286987]
[1758959238975,14.06813889,4008.7,4007.6,3.2078]
[1758959239180,0.59733889,4008.6,4007.6,3.2078]
[1758959239481,0.34417268,4008.5,4007.6,3.2078]
[1758959239778,0.09117268,4008.4,4007.6,3.20995851]
[1758959239979,0.253,4008.3,4007.6,3.20995851]
[1758959240182,0.09117268,4008.2,4007.6,3.20995851]
[1758959240379,3.4598,4008.1,4007.6,3.20995851]
[1758959240581,0.09117268,4008.0,4007.6,3.20995851]
[1758959243082,0.09117268,4008.0,4007.6,0.00215851]
[1758959246088,0.09117268,4007.9,4007.6,0.00215851]
[1758959246293,0.09117268,4007.8,4007.6,0.00215851]
[1758959246483,0.09117268,4007.7,4007.6,0.00215851]
[1758959247287,0.09117268,4007.7,4007.6,0.31655851]
[1758959248383,0.59201601,4007.7,4007.6,0.31655851]
[1758959249391,0.59201601,4007.7,4007.6,5.56955851]
[1758959249890,0.09117268,4007.7,4007.6,5.56955851]
[1758959253594,0.09117268,4007.7,4007.6,6.91084495]
[1758959254597,3.2078,4008.6,4008.5,0.1349]
[1758959254790,0.60933677,4008.6,4008.5,0.4493]
[1758959261797,0.10841869,4008.6,4008.5,0.4493]
[1758959263394,0.10841869,4008.6,4008.5,0.7023]
[1758959264790,0.10841869,4008.6,4008.5,0.4493]
[1758959264992,0.10841869,4008.6,4008.5,0.7023]
[1758959271102,0.10841869,4008.6,4008.5,0.4493]
[1758959271304,0.44681869,4008.6,4008.5,0.7013]
[1758959272604,0.44681869,4008.6,4008.5,0.4493]
[1758959272804,0.10841869,4008.6,4008.5,0.7013]
[1758959279306,0.10841869,4008.6,4008.5,2.04258644]
[1758959279707,0.10841869,4008.6,4008.5,0.7013]
[1758959279908,0.10841869,4008.6,4008.5,5.7013]
[1758959281113,0.10841869,4008.6,4008.5,7.04258644]
[1758959283407,0.10841869,4008.6,4008.5,5.7013]
[1758959284415,3.2078,4009.6,4008.5,5.7013]
[1758959284416,3.2078,4009.6,4009.5,0.4431]
[1758959284616,3.70178305,4009.6,4009.5,0.6951]
[1758959285012,3.2078,4009.6,4009.5,0.6951]
[1758959285411,0.34008362,4009.8,4009.6,0.3152]
[1758959285909,0.00238362,4009.8,4009.6,0.3152]
[1758959288711,0.00238362,4009.8,4009.6,1.65910422]
[1758959288911,0.00238362,4009.8,4009.7,0.3251]
[1758959289608,0.00238362,4009.8,4009.7,1.66900422]
[1758959289915,0.00238362,4009.8,4009.7,0.3251]
[1758959290113,2.22756199,4010.5,4010.0,0.126]
[1758959290317,2.22756199,4010.5,4010.2,0.3251]
[1758959290709,2.22756199,4010.5,4010.3,0.3251]
[1758959290911,2.22756199,4010.5,4010.4,0.252]
[1758959291213,2.23050081,4010.5,4010.4,0.5771]
[1758959291417,3.11858678,4010.9,4010.5,0.2259]
[1758959291615,3.11858678,4010.9,4010.8,3.4337]
[1758959291920,3.11858678,4010.9,4010.8,8.6857]
[1758959292216,3.11858678,4010.9,4010.8,8.88407294]
[1758959292420,3.12047114,4010.9,4010.8,8.88700766]
[1758959292717,3.12047114,4010.9,4010.8,8.68863472]
[1758959293715,3.12047114,4010.9,4010.8,9.11193472]
[1758959293913,3.12047114,4010.9,4010.8,10.00296248]
[1758959294220,3.12047114,4010.9,4010.8,9.11193472]
[1758959294520,3.45597114,4010.9,4010.8,9.11193472]
[1758959295320,3.45597114,4010.9,4010.8,8.85993472]
[1758959295613,3.45597114,4010.9,4010.8,3.88603472]
[1758959295614,3.67677114,4010.9,4010.8,3.88603472]
[1758959297020,3.67677114,4010.9,4010.8,3.63403472]
[1758959297221,3.67677114,4010.9,4010.8,3.88603472]
[1758959299220,3.67677114,4010.9,4010.8,4.11193472]
[1758959300121,3.45597114,4010.9,4010.8,4.11193472]
[1758959305126,3.45597114,4010.9,4010.8,5.00296248]
[1758959305826,3.67677114,4010.9,4010.8,4.11193472]
[1758959306026,3.67677114,4010.9,4010.8,5.00296248]
[1758959308129,3.67677114,4010.9,4010.8,4.11193472]
[1758959312131,3.67677114,4010.9,4010.8,5.45220037]
[1758959312425,3.67677114,4010.9,4010.8,5.22630037]
[1758959312829,3.88817114,4010.9,4010.8,5.22630037]
[1758959313129,3.88817114,4010.9,4010.8,3.88603472]
[1758959313527,3.88817114,4010.9,4010.8,3.46273472]
[1758959313726,3.88817114,4010.9,4010.8,4.80141758]
[1758959313928,3.88817114,4010.9,4010.8,5.00701758]
[1758959314229,3.88817114,4010.9,4010.8,3.66833472]
[1758959315329,3.88817114,4010.9,4010.8,3.88863472]
[1758959315631,3.88817114,4010.9,4010.8,4.11443472]
[1758959317134,3.88817114,4010.9,4010.8,5.90281664]
[1758959318137,3.88817114,4010.9,4010.8,4.11443472]
[1758959322137,3.67677114,4010.9,4010.8,4.11443472]
[1758959324043,3.88817114,4010.9,4010.8,3.88863472]
[1758959324946,3.88817114,4010.9,4010.8,3.66733472]
[1758959327034,3.45597114,4010.9,4010.8,4.11343472]
[1758959327427,3.67207114,4010.9,4010.8,4.11343472]
[1758959333439,3.45597114,4010.9,4010.8,6.34891212]
[1758959335653,3.68167114,4010.9,4010.8,6.34891212]
[1758959337649,3.68167114,4010.9,4010.8,4.11343472]
[1758959337951,3.12047114,4010.9,4010.8,5.90732786]
[1758959338248,3.12047114,4010.9,4010.8,4.11343472]
[1758959338547,3.43817114,4010.9,4010.8,4.11343472]
[1758959339047,3.43817114,4010.9,4010.8,4.81077633]
[1758959339238,3.87867114,4010.9,4010.8,4.58497633]
[1758959339849,3.87867114,4010.9,4010.8,4.33397633]
[1758959340047,3.87867114,4010.9,4010.8,4.58497633]
[1758959340240,3.87867114,4010.9,4010.8,3.90807633]
[1758959340444,3.87867114,4010.9,4010.8,4.15907633]
[1758959341052,3.87867114,4010.9,4010.8,3.46173472]
[1758959345056,3.87867114,4010.9,4010.8,3.68543472]
[1758959346961,3.87867114,4010.9,4010.8,3.46173472]
[1758959347866,3.87867114,4010.9,4010.8,3.68543472]
[1758959349760,0.76008436,4010.9,4010.8,3.68543472]
[1758959351568,0.76008436,4010.9,4010.8,3.89143472]
[1758959354169,0.76008436,4010.9,4010.8,3.21073472]
[1758959354367,0.76008436,4010.9,4010.8,3.46173472]
[1758959354567,0.76008436,4010.9,4010.8,3.68633472]
[1758959354764,0.54528436,4010.9,4010.8,4.11973472]
[1758959355562,0.31958436,4010.9,4010.8,4.11973472]
[1758959355762,0.00188436,4010.9,4010.8,4.11973472]
[1758959356968,0.30988436,4010.9,4010.8,4.11973472]
[1758959362778,0.53578436,4010.9,4010.8,4.11973472]
[1758959366480,0.30988436,4010.9,4010.8,4.11973472]
[1758959366881,0.00188436,4010.9,4010.8,4.11973472]
[1758959367983,0.33718436,4010.9,4010.8,4.11973472]
[1758959370885,0.55358436,4010.9,4010.8,4.11973472]
[1758959372489,0.76288436,4010.9,4010.8,3.43533472]
[1758959372689,0.76288436,4010.9,4010.8,3.68633472]
[1758959372987,0.76288436,4010.9,4010.8,3.89433472]
[1758959374186,0.76288436,4010.9,4010.8,4.11993472]
[1758959374691,0.76288436,4010.9,4010.8,3.89433472]
[1758959375691,0.76288436,4010.9,4010.8,3.64333472]
[1758959375884,0.76288436,4010.9,4010.8,3.68633472]
[1758959376090,0.76288436,4010.9,4010.8,5.92856076]
[1758959377188,0.76288436,4010.9,4010.8,3.43533472]
[1758959377492,0.76288436,4010.9,4010.8,3.68633472]
[1758959378190,0.76288436,4010.9,4010.8,3.43533472]
[1758959378485,0.76288436,4010.9,4010.8,3.68633472]
[1758959378790,0.76288436,4010.9,4010.8,3.43533472]
[1758959378990,5.86643283,4010.9,4010.8,3.21073472]
[1758959379184,5.86643283,4010.9,4010.8,3.46173472]
[1758959379385,0.86643283,4010.9,4010.8,3.46173472]
[1758959380495,0.86643283,4010.9,4010.8,3.21073472]
[1758959380790,0.86643283,4010.9,4010.8,3.46173472]
[1758959380991,0.86632692,4010.9,4010.8,3.46173472]
[1758959382091,0.86632692,4010.9,4010.8,4.80531586]
[1758959382292,0.86632692,4010.9,4010.8,3.46173472]
[1758959383586,0.86632692,4010.9,4010.8,3.68683472]
[1758959383885,0.86632692,4010.9,4010.8,3.89483472]
[1758959385193,0.86632692,4010.9,4010.8,4.12043472]
[1758959387695,0.65702692,4010.9,4010.8,4.12043472]
[1758959387896,0.65702692,4010.9,4010.8,5.46342134]
[1758959389491,0.65750689,4010.9,4010.8,5.46342134]
[1758959390503,0.44110689,4010.9,4010.8,4.12043472]
[1758959391392,0.00188436,4010.9,4010.8,5.91419132]
[1758959392105,0.00188436,4010.9,4010.8,4.12043472]
[1758959394906,0.32578436,4010.9,4010.8,4.12043472]
[1758959395106,0.32578436,4010.9,4010.8,5.91099263]
[1758959397596,0.53738436,4010.9,4010.8,5.65999263]
[1758959397801,0.75888436,4010.9,4010.8,5.68539263]
[1758959398107,0.75888436,4010.9,4010.8,5.91119263]
[1758959398806,0.75888436,4010.9,4010.8,5.68539263]
[1758959400607,0.75888436,4010.9,4010.8,5.43439263]
[1758959400807,0.75888436,4010.9,4010.8,5.47739263]
[1758959400998,0.75888436,4010.9,4010.8,3.68683472]
[1758959403710,0.75888436,4010.9,4010.8,0.47903472]
[1758959403908,0.75888436,4010.9,4010.8,3.68683472]
[1758959409018,0.75888436,4010.9,4010.8,3.43583472]
[1758959409208,0.75888436,4010.9,4010.8,3.68683472]
[1758959410614,0.75888436,4010.9,4010.8,3.43583472]
[1758959410817,0.75888436,4010.9,4010.8,3.68683472]
[1758959411115,0.75888436,4010.9,4010.8,5.47739263]
[1758959411413,0.75888436,4010.9,4010.8,5.68819263]
[1758959413117,0.75888436,4010.9,4010.8,5.91409263]
[1758959416817,0.54728436,4010.9,4010.8,5.91409263]
[1758959417017,0.32578436,4010.9,4010.8,4.12353472]
[1758959419733,0.00188436,4010.9,4010.8,4.12353472]
[1758959421722,0.33968436,4010.9,4010.8,4.12353472]
[1758959422226,0.00188436,4010.9,4010.8,4.12353472]
[1758959426923,0.33218436,4010.9,4010.8,4.12353472]
[1758959428925,0.33218436,4010.9,4010.8,3.87253472]
[1758959429115,0.33218436,4010.9,4010.8,4.12353472]
[1758959438937,0.00188436,4010.9,4010.8,4.12353472]
[1758959439232,0.33218436,4010.9,4010.8,4.12353472]
[1758959445649,0.76228436,4010.9,4010.8,3.89763472]
[1758959445850,0.86779789,4010.9,4010.8,3.89763472]
[1758959447847,0.86779789,4010.9,4010.8,3.43583472]
[1758959448050,0.86779789,4010.9,4010.8,5.48137956]
[1758959448750,0.86779789,4010.9,4010.8,3.68683472]
[1758959453658,0.86779789,4010.9,4010.8,4.80633848]
[1758959454062,0.86779789,4010.9,4010.8,4.55533848]
[1758959454262,5.86779789,4010.9,4010.8,3.46173472]
[1758959454560,5.86779789,4010.9,4010.8,4.35806841]
[1758959454761,0.7634,4010.8,4010.7,0.89634236]
[1758959454957,0.86891353,4010.8,4010.5,0.251]
[1758959455159,0.7634,4010.6,4010.5,0.251]
[1758959455360,0.86891353,4010.6,4010.5,0.251]
[1758959455554,5.86891353,4010.6,4010.5,0.251]
[1758959455757,5.86891353,4010.6,4010.5,0.25400962]
[1758959459965,0.86891353,4010.6,4010.5,0.47070962]
[1758959460157,0.86891353,4010.6,4010.5,0.68000962]
[1758959460961,0.86891353,4010.6,4010.5,0.25400962]
[1758959461162,5.86891353,4010.6,4010.5,0.00300962]
[1758959461466,5.86891353,4010.6,4010.5,0.25400962]
[1758959462154,0.4253,4010.3,4010.2,3.2078]
[1758959462368,0.86891353,4010.3,4010.2,3.4588]
[1758959463066,0.86891353,4010.3,4010.2,3.46083786]
[1758959464263,0.86891353,4010.3,4010.2,3.67753786]
[1758959464473,0.65981353,4010.3,4010.2,4.11303786]
[1758959471574,0.65981353,4010.3,4010.2,0.90523786]
[1758959476883,0.88591353,4010.3,4010.2,0.67903786]
[1758959477875,0.7804,4010.3,4010.2,0.25303786]
[1758959478081,0.88669171,4010.3,4010.2,0.25303786]
[1758959478282,0.88669171,4010.3,4010.2,0.00203786]
[1758959478480,0.88669171,4010.3,4010.2,0.25303786]
[1758959485588,0.88669171,4010.3,4010.2,1.15007859]
[1758959485789,0.88669171,4010.3,4010.2,0.25303786]
[1758959486690,0.88687246,4010.3,4010.2,0.25303786]
[1758959489194,0.88687246,4010.3,4010.2,0.47493786]
[1758959490192,0.88687246,4010.3,4010.2,0.90903786]
[1758959490393,0.66077246,4010.3,4010.2,2.25126466]
[1758959492203,0.10647246,4010.3,4010.2,2.25126466]
[1758959492400,0.10647246,4010.3,4010.2,0.90903786]
[1758959496208,0.10647246,4010.3,4010.2,5.90903786]
[1758959497310,0.3198,4010.8,4010.7,0.43]
[1758959497508,0.42623085,4010.8,4010.7,5.45914962]
[1758959499908,0.42623085,4010.8,4010.7,4.1148]
[1758959500107,0.42623085,4010.8,4010.7,5.45914962]
[1758959500410,0.42623085,4010.8,4010.7,4.1148]
[1758959500908,0.63413085,4010.8,4010.7,4.1148]
[1758959502108,0.84423085,4010.8,4010.7,3.8888]
[1758959502410,0.84423085,4010.8,4010.7,4.78419302]
[1758959506709,0.84423085,4010.8,4010.7,5.01019302]
[1758959506912,0.84423085,4010.8,4010.7,4.78419302]
[1758959508516,0.8445323,4010.8,4010.7,4.78419302]
[1758959509215,0.8445323,4010.8,4010.7,4.57609302]
[1758959510516,0.8445323,4010.8,4010.7,4.78419302]
[1758959511915,0.8445323,4010.8,4010.7,5.01019302]
[1758959515106,0.6344323,4010.8,4010.7,5.01019302]
[1758959515716,0.4265323,4010.8,4010.7,4.1148]
[1758959517017,0.8521323,4010.8,4010.7,3.8888]
[1758959517220,0.85220148,4010.8,4010.7,4.78444322]
[1758959517420,0.85220148,4010.8,4010.7,4.1148]
[1758959517612,0.64320148,4010.8,4010.7,4.1148]
[1758959517807,0.42660148,4010.8,4010.7,4.1148]
[1758959519120,0.10680148,4010.8,4010.7,4.1148]
[1758959519316,0.10680148,4010.8,4010.7,5.45914962]
[1758959520317,0.41750148,4010.8,4010.7,5.45914962]
[1758959521221,0.10680148,4010.8,4010.7,4.1148]
[1758959521723,0.41750148,4010.8,4010.7,4.1148]
[1758959524525,0.4176472,4010.8,4010.7,4.1148]
[1758959525218,0.1069472,4010.8,4010.7,4.1148]
[1758959525517,0.00188436,4010.9,4010.7,4.1148]
[1758959525722,0.00188436,4010.9,4010.8,0.6745]